bitfinex/quotes_ETHUSD_20240602
["timestamp","ask_amount","ask_price","bid_price","bid_amount"]
[1717360328904,3.0,3777.1,3776.5,0.562]
[1717360329046,2.64752,3777.2,3776.5,0.562]
[1717360335098,2.64752,3777.2,3776.6,2.3846]
[1717360337884,2.64726,3777.5,3776.7,1.112]
[1717360338130,2.64726,3777.5,3776.8,0.34966]
[1717360338346,2.64726,3777.5,3776.9,0.55]
[1717360339100,2.64726,3777.5,3777.0,2.3846]
[1717360343513,2.64705,3777.8,3777.2,0.562]
[1717360345120,2.64705,3777.8,3777.0,2.997]
[1717360345436,2.64705,3777.8,3777.1,0.55]
[1717360348500,0.02325769,3777.7,3777.1,0.55]
[1717360348700,2.6472,3777.6,3777.1,0.55]
[1717360349208,0.02325769,3777.5,3777.1,0.55]
[1717360354134,2.64733,3777.4,3777.0,2.435]
[1717360354318,2.64733,3777.4,3776.7,2.3972]
[1717360354523,0.02317202,3777.3,3776.8,0.55]
[1717360355545,0.02317202,3777.3,3776.8,1.112]
[1717360355760,0.02317202,3777.3,3777.0,0.562]
[1717360355967,0.02317202,3777.3,3777.1,2.9472]
[1717360356179,2.64733,3777.4,3777.1,2.9472]
[1717360358324,2.64711,3777.7,3777.1,2.9472]
[1717360358749,0.02317202,3777.6,3777.1,2.9472]
[1717360362257,0.02317202,3777.6,3777.2,0.562]
[1717360362458,0.02317202,3777.6,3777.3,0.55]
[1717360362657,2.64711,3777.7,3777.3,0.55]
[1717360362844,0.02323516,3777.6,3777.3,0.55]
[1717360363027,2.64711,3777.7,3777.3,0.55]
[1717360363524,0.02323516,3777.6,3777.3,0.55]
[1717360363920,2.64711,3777.7,3777.3,0.55]
[1717360364464,0.02323516,3777.6,3777.3,0.55]
[1717360364973,2.64711,3777.7,3777.3,0.55]
[1717360365339,0.02328022,3777.6,3777.3,0.55]
[1717360365738,2.64711,3777.7,3777.3,0.55]
[1717360366363,0.02328022,3777.6,3777.3,0.55]
[1717360366720,2.64711,3777.7,3777.3,0.55]
[1717360367134,0.02328022,3777.6,3777.3,0.55]
[1717360367561,2.64711,3777.7,3777.3,0.55]
[1717360367860,0.02328022,3777.6,3777.3,0.55]
[1717360368021,2.64711,3777.7,3777.3,0.55]
[1717360368217,0.02328022,3777.6,3777.3,0.55]
[1717360368421,2.64711,3777.7,3777.3,0.55]
[1717360368660,0.02328022,3777.6,3777.3,0.55]
[1717360369061,2.64711,3777.7,3777.3,0.55]
[1717360369241,0.02328022,3777.6,3777.3,0.55]
[1717360369441,2.64711,3777.7,3777.3,1.165675]
[1717360369642,0.02328022,3777.5,3777.3,1.165675]
[1717360369870,2.64711,3777.7,3777.3,1.165675]
[1717360370071,0.02328022,3777.6,3777.3,0.55]
[1717360370258,0.02328022,3777.6,3777.2,0.55]
[1717360370462,2.64711,3777.7,3777.2,0.55]
[1717360370666,0.02328022,3777.6,3777.2,0.55]
[1717360370829,2.6469,3778.0,3777.2,0.55]
[1717360371035,0.02328022,3777.5,3777.2,0.55]
[1717360371267,2.6469,3778.0,3777.3,0.615675]
[1717360371433,2.6469,3778.0,3777.4,0.55]
[1717360371851,2.6469,3778.0,3777.2,0.55]
[1717360372755,2.64709,3777.8,3777.2,0.55]
[1717360373156,2.64709,3777.8,3777.0,2.64755]
[1717360373157,2.27,3777.7,3777.1,0.55]
[1717360374182,2.6472,3777.6,3777.1,0.55]
[1717360375745,2.6472,3777.6,3777.0,0.55]
[1717360376842,2.6472,3777.6,3776.9,0.55]
[1717360380148,2.64737,3777.4,3776.9,0.55]
[1717360380355,2.64737,3777.4,3776.7,0.562]
[1717360380562,2.64737,3777.4,3776.8,0.55]
[1717360381385,2.64753,3777.1,3776.6,0.562]
[1717360382249,2.64753,3777.1,3776.6,0.883]
[1717360382448,2.64753,3777.1,3776.7,2.3091]
[1717360382848,2.64753,3777.1,3776.8,0.562]
[1717360383486,0.02363209,3777.0,3776.9,5.50677]
[1717360383655,2.64705,3777.8,3776.9,6.651547]
[1717360383850,0.02356446,3777.7,3777.2,0.562]
[1717360386183,0.02356446,3777.7,3777.1,0.562]
[1717360386394,0.02356446,3777.7,3777.2,0.55]
[1717360391293,0.02356446,3777.7,3777.3,2.399]
[1717360395305,0.02356446,3777.7,3777.3,2.7501]
[1717360395511,0.02356446,3777.7,3777.4,0.55]
[1717360405098,2.64719,3777.6,3777.0,2.399]
[1717360405301,0.02402883,3777.5,3776.9,1.144777]
[1717360405545,0.02402883,3777.5,3777.1,0.55]
[1717360405844,0.02402883,3777.5,3777.0,0.55]
[1717360406011,0.02402883,3777.5,3777.0,1.2241537]
[1717360406229,0.02402883,3777.5,3777.0,0.55]
[1717360406429,2.64733,3777.4,3776.9,0.55]
[1717360406962,0.02399726,3777.3,3776.3,5.04704]
[1717360407097,2.64749,3777.2,3776.3,5.04704]
[1717360407434,2.64761,3777.0,3776.3,2.64804]
[1717360407750,2.64761,3777.0,3776.2,0.562]
[1717360407957,0.02386653,3776.9,3776.2,0.562]
[1717360408119,2.64761,3777.0,3776.2,0.562]
[1717360408315,2.64761,3777.0,3776.2,1.84993]
[1717360408742,2.64761,3777.0,3776.3,0.55]
[1717360412695,2.64761,3777.0,3776.4,2.8589]
[1717360412977,2.64761,3777.0,3776.5,0.55]
[1717360413367,2.64647757,3777.0,3776.5,0.55]
[1717360413574,0.02357971,3776.9,3776.6,0.34089]
[1717360414942,0.02357971,3776.9,3776.6,0.90289]
[1717360416361,0.02357971,3776.9,3776.7,0.55]
[1717360416564,0.02357971,3776.9,3776.8,2.8589]
[1717360416761,2.64738,3777.4,3776.8,2.8589]
[1717360416762,2.64738,3777.4,3776.8,3.4089]
[1717360417046,2.64738,3777.4,3776.9,0.979979]
[1717360425554,2.64712,3777.7,3777.0,2.2969]
[1717360425906,2.64712,3777.7,3777.2,0.562]
[1717360427483,2.64733,3777.4,3776.6,2.63779]
[1717360427682,2.64733,3777.4,3776.7,0.55]
[1717360427899,2.64733,3777.4,3776.8,0.374979]
[1717360428101,2.64733,3777.4,3776.9,0.55]
[1717360428395,0.02339035,3777.3,3776.9,0.55]
[1717360441920,0.02339035,3777.3,3776.9,3.75965]
[1717360442101,2.64712,3777.7,3777.1,0.562]
[1717360442290,2.64712,3777.7,3777.2,0.665355]
[1717360443358,0.02362484,3777.6,3777.2,0.665355]
[1717360445734,0.02362484,3777.6,3777.3,2.3319]
[1717360445958,2.64688,3778.1,3777.4,0.55]
[1717360446247,0.02378713,3777.5,3777.4,0.55]
[1717360446417,2.64688,3778.1,3777.4,1.06349202]
[1717360446607,0.02378713,3777.5,3777.4,1.06349202]
[1717360446807,2.64688,3778.1,3777.4,1.06349202]
[1717360447039,0.02378713,3777.5,3777.4,0.55]
[1717360447239,2.64688,3778.1,3777.4,0.55]
[1717360447504,3.0,3778.3,3777.6,0.562]
[1717360447712,2.64662,3778.4,3777.8,2.3319]
[1717360447911,0.57223987,3778.3,3777.8,2.3319]
[1717360448108,2.64662,3778.4,3777.8,2.3319]
[1717360453364,2.64662,3778.4,3777.8,2.62129]
[1717360460556,2.64662,3778.4,3778.0,2.4664]
[1717360461040,0.02339738,3778.3,3778.0,2.4664]
[1717360461873,0.02339738,3778.3,3778.1,0.55]
[1717360462170,2.64642,3778.7,3778.1,0.55]
[1717360462358,0.02339738,3778.6,3778.3,2.4664]
[1717360462564,2.64616,3779.1,3778.4,0.55]
[1717360465881,2.64616,3779.1,3778.6,3.0164]
[1717360476492,2.64633,3778.9,3778.2,2.339]
[1717360476666,2.64633,3778.9,3778.3,0.55]
[1717360480789,2.64648,3778.7,3777.9,2.4482]
[1717360481097,2.64648,3778.7,3778.0,1.815469]
[1717360481304,3.20848,3778.7,3778.0,1.815469]
[1717360482408,5.60588,3778.7,3778.0,1.815469]
[1717360483098,2.64648,3778.7,3778.0,1.815469]
[1717360483303,2.64648,3778.7,3778.0,2.377469]
[1717360483500,2.64648,3778.7,3778.1,0.5115059]
[1717360491687,2.64648,3778.7,3778.0,1.815469]
[1717360492669,0.562,3778.9,3778.0,1.815469]
[1717360492909,2.2993,3779.2,3778.1,2.3316]
[1717360493098,0.562,3779.0,3778.2,0.55]
[1717360493302,0.57218378,3779.1,3778.3,0.7905949]
[1717360493531,0.562,3779.0,3778.3,0.7905949]
[1717360493879,0.562,3779.0,3778.4,0.55]
[1717360494193,2.64614,3779.1,3778.4,0.55]
[1717360494398,2.64614,3779.1,3778.5,2.3316]
[1717360494731,2.64614,3779.1,3778.6,0.36721949]
[1717360503426,2.64593,3779.4,3778.6,0.92921949]
[1717360503927,2.64593,3779.4,3778.9,0.562]
[1717360504098,2.64593,3779.4,3778.9,2.3316]
[1717360507140,0.02318536,3779.3,3778.9,2.3316]
[1717360507339,0.02318536,3779.3,3779.0,0.28936]
[1717360513846,0.57206206,3779.6,3779.0,0.28936]
[1717360514005,0.02369897,3779.5,3779.0,0.28936]
[1717360514214,2.64571,3779.7,3779.0,0.28936]
[1717360514447,0.02369446,3779.6,3779.1,0.262096]
[1717360515261,2.64585,3779.5,3779.1,0.262096]
[1717360515611,0.02374401,3779.4,3779.1,0.262096]
[1717360522231,0.02374401,3779.4,3778.9,2.8936]
[1717360522427,0.02374401,3779.4,3778.9,2.3316]
[1717360531820,2.35174401,3779.4,3778.6,5.38713949]
[1717360532057,2.646,3779.3,3778.6,5.38713949]
[1717360532260,0.02383409,3779.2,3778.7,1.75906753]
[1717360533562,2.64615,3779.1,3778.6,0.36721949]
[1717360534263,0.02383409,3779.0,3778.6,0.36721949]
[1717360534424,2.64628,3778.9,3778.4,7.27]
[1717360534626,2.64628,3778.9,3778.5,0.55]
[1717360537277,2.64628,3778.9,3778.3,0.55]
[1717360543373,0.02383409,3778.8,3778.3,0.55]
[1717360548443,2.64641,3778.7,3778.0,0.562]
[1717360548750,0.02359986,3778.6,3778.1,0.55]
[1717360549138,2.64641,3778.7,3778.1,0.55]
[1717360553748,0.02369896,3778.6,3778.1,0.55]
[1717360559313,0.02369896,3778.6,3778.1,0.562]
[1717360563121,0.02369896,3778.6,3778.0,0.55]
[1717360563122,0.02369896,3778.6,3778.3,0.562]
[1717360563284,0.02369896,3778.6,3778.4,0.55]
[1717360563646,2.64621,3779.0,3778.5,0.604675]
[1717360563922,2.64621,3779.0,3778.4,0.55]
[1717360564125,5.0284,3779.3,3778.4,0.55]
[1717360564825,5.0284,3779.3,3778.4,3.19656]
[1717360564984,0.57207349,3779.2,3778.4,3.19656]
[1717360565183,5.0284,3779.3,3778.4,3.801216]
[1717360567325,2.64537,3780.2,3778.8,0.562]
[1717360567326,2.64578,3779.7,3778.8,0.562]
[1717360567526,0.57205914,3779.6,3779.0,0.562]
[1717360567698,0.57205914,3779.6,3779.1,2.288]
[1717360568328,2.64578,3779.7,3779.1,2.288]
[1717360571295,2.64578,3779.7,3779.1,2.837632]
[1717360571496,5.4043,3780.1,3779.1,2.837632]
[1717360571497,2.64551,3780.0,3779.1,2.837632]
[1717360571835,2.64551,3780.0,3779.2,1.112]
[1717360572144,2.64551,3780.0,3779.4,0.562]
[1717360573238,2.64551,3780.0,3779.5,2.3042]
[1717360575542,2.64551,3780.0,3779.5,2.910418]
[1717360577610,2.4043,3780.3,3779.5,2.910418]
[1717360577813,2.64529,3780.4,3779.6,0.562]
[1717360578047,2.64529,3780.4,3779.6,1.112]
[1717360578379,0.0243429,3779.7,3779.6,1.112]
[1717360578753,2.64529,3780.4,3779.6,1.112]
[1717360578937,2.64529,3780.4,3779.7,0.4022418]
[1717360581278,2.64529,3780.4,3779.6,0.55]
[1717360586808,2.64542,3780.2,3779.3,2.64598]
[1717360587013,2.4043,3779.9,3779.3,2.64598]
[1717360587213,2.4043,3779.9,3779.4,0.55]
[1717360588399,2.4043,3779.9,3778.9,4.95042]
[1717360588603,2.4043,3779.9,3779.2,0.562]
[1717360593428,0.02463104,3779.7,3779.2,0.562]
[1717360596785,0.02463104,3779.7,3779.4,2.9305]
[1717360596990,2.64557,3780.0,3779.4,2.9305]
[1717360597203,0.02463104,3779.6,3779.4,2.9305]
[1717360597498,2.64557,3780.0,3779.5,0.55]
[1717360599792,2.64557,3780.0,3779.6,0.562]
[1717360599996,2.64557,3780.0,3779.6,0.91005]
[1717360602093,2.64527,3780.4,3779.6,0.91005]
[1717360602292,2.64527,3780.4,3779.7,0.55]
[1717360607222,12.5764952,3781.7,3779.7,2.9185]
[1717360607223,2.645,3780.8,3779.7,2.9185]
[1717360607907,2.3756,3780.7,3779.7,2.9185]
[1717360608850,2.3756,3780.7,3779.7,3.4805]
[1717360609836,2.3756,3780.7,3779.7,2.9185]
[1717360610042,2.3756,3780.7,3779.7,4.036922]
[1717360616721,2.3756,3780.7,3779.7,1.668422]
[1717360616922,2.3756,3780.7,3779.7,1.112]
[1717360620326,2.374,3780.2,3779.7,1.112]
[1717360621260,2.374,3780.9,3779.7,3.383]
[1717360621428,2.374,3780.9,3779.7,2.821]
[1717360621627,2.374,3780.9,3779.7,3.383]
[1717360622535,2.374,3780.9,3779.7,2.821]
[1717360622729,2.374,3780.9,3779.7,3.929672]
[1717360622929,2.374,3780.9,3779.7,3.367672]
[1717360623147,2.374,3780.9,3779.7,3.929672]
[1717360623352,2.374,3780.9,3779.7,3.367672]
[1717360623553,2.374,3780.9,3779.7,3.929672]
[1717360623974,2.374,3780.9,3779.7,3.367672]
[1717360624163,2.374,3780.9,3779.7,3.929672]
[1717360625458,2.374,3780.9,3779.7,3.367672]
[1717360625659,2.374,3780.9,3779.7,3.929672]
[1717360625855,2.374,3780.9,3779.7,3.367672]
[1717360626057,2.374,3780.9,3779.7,3.929672]
[1717360629456,2.374,3780.9,3779.7,3.367672]
[1717360629684,2.374,3780.9,3779.7,3.929672]
[1717360634689,2.2672,3780.4,3779.7,3.929672]
[1717360635034,26.02338198,3779.8,3779.7,3.929672]
[1717360637624,26.02338198,3779.8,3779.7,1.096672]
[1717360637806,26.02338198,3779.8,3779.7,1.112]
[1717360653223,26.02338198,3779.8,3779.7,3.4193]
[1717360654487,26.0,3779.8,3779.7,6.4193]
[1717360654653,26.02373315,3779.8,3779.7,6.4193]
[1717360654977,26.02373315,3779.8,3779.7,7.93910638]
[1717360658079,25.76333315,3779.8,3779.7,7.93910638]
[1717360659516,24.77203315,3779.8,3779.7,7.93910638]
[1717360659689,24.52203315,3779.8,3779.7,7.93910638]
[1717360665287,24.52203315,3779.8,3779.7,4.51980638]
[1717360665500,24.52203315,3779.8,3779.7,5.08180638]
[1717360666774,24.52203315,3779.8,3779.7,5.63180638]
[1717360672246,24.4983,3779.8,3779.7,5.63180638]
[1717360672443,24.52202864,3779.8,3779.7,5.63180638]
[1717360677805,24.52202864,3779.8,3779.7,8.07040638]
[1717360680208,24.4983,3779.8,3779.7,8.07040638]
[1717360680408,24.52202864,3779.8,3779.7,7.50840638]
[1717360680856,24.52202864,3779.8,3779.7,8.07040638]
[1717360682051,24.52202864,3779.8,3779.7,7.98740638]
[1717360682603,24.52202864,3779.8,3779.7,5.06980638]
[1717360682913,24.52202864,3779.8,3779.7,4.029]
[1717360696169,24.52212767,3779.8,3779.7,6.4627]
[1717360696372,24.4983,3779.8,3779.7,6.4627]
[1717360696669,24.4983,3779.8,3779.7,7.66470986]
[1717360711683,23.7412,3779.8,3779.7,7.66470986]
[1717360714649,23.7412,3779.8,3779.7,7.18570986]
[1717360714980,23.7412,3779.8,3779.7,7.66470986]
[1717360725287,23.7412,3779.8,3779.7,7.18570986]
[1717360725816,23.7412,3779.8,3779.7,7.66470986]
[1717360738998,23.2312,3779.8,3779.7,7.66470986]
[1717360744833,23.2312,3779.8,3779.7,7.18570986]
[1717360745046,23.2312,3779.8,3779.7,7.66470986]
[1717360747350,23.2312,3779.8,3779.7,4.75200986]
[1717360747738,23.2312,3779.8,3779.7,5.23100986]
[1717360752222,23.2312,3779.8,3779.7,4.75200986]
[1717360752423,23.2312,3779.8,3779.7,5.23100986]
[1717360755166,23.042696,3779.8,3779.7,8.10168185]
[1717360755595,23.042696,3779.8,3779.7,8.66534172]
[1717360755753,23.042696,3779.8,3779.7,8.37946784]
[1717360756933,23.042696,3779.8,3779.7,7.54610986]
[1717360758876,23.042696,3779.8,3779.7,5.23100986]
[1717360759983,23.042696,3779.8,3779.7,5.78654006]
[1717360760194,23.042696,3779.8,3779.7,5.30754006]
[1717360760484,23.042696,3779.8,3779.7,5.78654006]
[1717360762250,23.042696,3779.8,3779.7,5.30754006]
[1717360762443,23.042696,3779.8,3779.7,5.78654006]
[1717360763446,23.042696,3779.8,3779.7,4.1055302]
[1717360763695,23.042696,3779.8,3779.6,2.64572]
[1717360763905,23.042696,3779.8,3779.7,0.479]
[1717360764072,23.042696,3779.8,3779.6,2.64572]
[1717360764389,23.042696,3779.8,3779.7,0.479]
[1717360764739,23.042696,3779.8,3779.6,2.64572]
[1717360764939,23.042696,3779.8,3779.7,3.479]
[1717360765373,25.295096,3779.8,3779.6,2.64572]
[1717360765546,25.295096,3779.8,3779.7,0.479]
[1717360766888,25.295096,3779.8,3779.7,1.029]
[1717360767750,25.295096,3779.8,3779.7,0.55]
[1717360767954,25.295096,3779.8,3779.7,1.029]
[1717360769697,25.295096,3779.8,3779.7,0.55]
[1717360769922,25.295096,3779.8,3779.7,1.029]
[1717360771192,25.295096,3779.8,3779.7,0.55]
[1717360771501,25.295096,3779.8,3779.7,1.029]
[1717360778008,2.2968,3779.7,3779.3,2.64597]
[1717360778171,2.2968,3779.7,3779.6,0.479]
[1717360778369,2.2968,3779.7,3779.6,1.029]
[1717360779309,2.2968,3779.7,3779.6,0.479]
[1717360780538,4.8307496,3779.7,3779.0,9.91618]
[1717360780828,2.2968,3779.7,3779.3,0.479]
[1717360782102,2.2968,3779.7,3779.1,0.55]
[1717360782306,2.2968,3779.7,3779.3,0.479]
[1717360782614,2.2968,3779.7,3779.4,0.479]
[1717360785309,2.2968,3779.7,3779.6,0.479]
[1717360786419,23.042696,3779.8,3779.6,0.479]
[1717360786602,23.042696,3779.8,3779.7,0.55]
[1717360787486,23.042696,3779.8,3779.7,0.91748]
[1717360799237,23.042696,3779.8,3779.7,0.55]
[1717360800509,23.042696,3779.8,3779.7,0.479]
[1717360800702,23.042696,3779.8,3779.7,1.029]
[1717360801524,23.042696,3779.8,3779.7,0.55]
[1717360801829,23.042696,3779.8,3779.7,0.479]
[1717360802140,23.042696,3779.8,3779.7,1.029]
[1717360804233,23.042696,3779.8,3779.5,2.6458]
[1717360804438,23.042696,3779.8,3779.6,0.55]
[1717360804439,2.3487,3779.7,3779.6,0.55]
[1717360804612,2.3487,3779.7,3779.6,0.479]
[1717360804929,2.3487,3779.7,3779.6,1.029]
[1717360805437,23.042696,3779.8,3779.6,0.55]
[1717360805737,23.042696,3779.8,3779.6,0.479]
[1717360810219,23.042696,3779.8,3779.3,0.55]
[1717360810420,23.042696,3779.8,3779.5,0.479]
[1717360816357,23.042696,3779.8,3779.7,0.479]
[1717360817298,23.042696,3779.8,3779.7,1.029]
[1717360821776,23.042696,3779.8,3779.7,3.3946]
[1717360821975,23.042696,3779.8,3779.7,3.998632]
[1717360823486,23.042696,3779.8,3779.7,6.998632]
[1717360831661,23.09236218,3779.8,3779.7,6.998632]
[1717360840557,22.82776218,3779.8,3779.7,6.998632]
[1717360841059,22.80136218,3779.8,3779.7,6.998632]
[1717360844598,21.18686218,3779.8,3779.7,6.998632]
[1717360844808,15.11586218,3779.8,3779.7,6.998632]
[1717360847866,14.85586218,3779.8,3779.7,6.998632]
[1717360850378,14.60586218,3779.8,3779.7,6.998632]
[1717360860105,14.52186218,3779.8,3779.7,6.998632]
[1717360860438,14.33786218,3779.8,3779.7,6.998632]
[1717360864770,13.82786218,3779.8,3779.7,6.998632]
[1717360865743,13.79234433,3779.8,3779.7,6.998632]
[1717360866452,13.79234433,3779.8,3779.7,7.5541622]
[1717360868475,13.79234433,3779.8,3779.7,6.998632]
[1717360868676,13.52934433,3779.8,3779.7,6.998632]
[1717360869345,13.52934433,3779.8,3779.7,7.55335996]
[1717360869979,13.52934433,3779.8,3779.7,6.998632]
[1717360872591,13.52934433,3779.8,3779.7,4.633032]
[1717360872879,13.47967815,3779.8,3779.7,4.633032]
[1717360873059,13.52812356,3779.8,3779.7,4.633032]
[1717360873381,13.26159356,3779.8,3779.7,4.633032]
[1717360873573,13.01159356,3779.8,3779.7,4.633032]
[1717360874445,13.01159356,3779.8,3779.7,5.18779403]
[1717360874650,12.96314815,3779.8,3779.7,5.18779403]
[1717360874882,13.01158906,3779.8,3779.7,5.18779403]
[1717360875262,13.01158906,3779.8,3779.7,4.633032]
[1717360876051,13.01158906,3779.8,3779.7,5.18790622]
[1717360877982,2.4705,3780.8,3780.2,2.6453]
[1717360878185,2.4705,3780.8,3780.7,0.479]
[1717360878491,2.4705,3780.8,3780.7,3.67401]
[1717360896075,2.4705,3780.8,3780.7,3.19501]
[1717360896295,2.4705,3780.8,3780.7,3.67401]
[1717360903513,2.4705,3780.8,3780.7,3.19501]
[1717360903811,2.51764144,3780.8,3780.7,3.67401]
[1717360917400,0.04714144,3780.8,3780.7,3.67401]
[1717360917733,2.2836,3781.0,3780.7,3.67401]
[1717360917935,0.04714144,3780.9,3780.8,0.55]
[1717360920779,0.04714144,3780.9,3780.8,1.029]
[1717360921086,0.04714144,3780.9,3779.9,3.28585144]
[1717360921087,2.2836,3780.8,3780.4,2.6452]
[1717360921392,2.2836,3780.8,3780.5,1.029]
[1717360921524,0.04708291,3780.7,3780.5,1.029]
[1717360921724,2.2836,3780.8,3780.5,1.029]
[1717360921972,0.04708291,3780.7,3780.5,1.029]
[1717360922156,2.2836,3780.8,3780.5,1.029]
[1717360922481,0.04708291,3780.7,3780.5,1.029]
[1717360922786,2.2836,3780.8,3780.5,1.029]
[1717360922928,0.04703788,3780.6,3780.5,1.029]
[1717360923275,2.2836,3780.8,3780.5,1.029]
[1717360923476,0.04703788,3780.6,3780.5,1.029]
[1717360923631,2.2836,3780.8,3780.5,1.029]
[1717360923828,0.04703788,3780.6,3780.5,1.029]
[1717360924026,2.2836,3780.8,3780.5,1.029]
[1717360924584,0.04703788,3780.7,3780.5,1.029]
[1717360925063,2.2836,3781.0,3780.5,1.029]
[1717360925268,0.04703788,3780.6,3780.5,1.029]
[1717360925449,2.2836,3781.0,3780.5,1.62338]
[1717360926145,0.04703788,3780.9,3780.5,1.029]
[1717360928677,0.04703788,3780.9,3780.5,0.55]
[1717360928977,0.04703788,3780.9,3780.6,0.479]
[1717360937764,5.10331,3781.2,3780.6,0.479]
[1717360937988,0.04701985,3781.1,3780.6,0.479]
[1717360945297,0.56205283,3781.1,3780.5,1.029]
[1717360951479,0.04701985,3781.1,3780.5,1.029]
[1717360954462,0.04701985,3781.1,3780.5,3.4198]
[1717360979306,0.04701985,3781.1,3780.1,2.64541]
[1717360979500,2.645,3780.8,3780.2,2.4671]
[1717360979828,0.04379269,3780.7,3780.2,2.4671]
[1717360980003,2.645,3780.8,3780.3,0.479]
[1717360980201,0.04379269,3780.7,3780.3,0.479]
[1717360980400,2.645,3780.8,3780.3,0.479]
[1717360980615,0.04379269,3780.7,3780.3,0.479]
[1717360980811,2.645,3780.8,3780.3,0.479]
[1717360981014,0.04379269,3780.7,3780.5,2.4671]
[1717360981329,2.64472,3781.2,3780.5,2.9461]
[1717360981545,2.64472,3781.2,3780.8,0.479]
[1717360981751,0.04379269,3781.1,3780.8,0.479]
[1717360981963,0.04379269,3781.1,3780.7,2.2565]
[1717360982115,0.04379269,3781.1,3780.7,2.58505]
[1717360985329,0.04379269,3781.1,3780.7,2.2565]
[1717360985812,0.04379269,3781.1,3780.5,2.7355]
[1717360986125,0.04379269,3781.1,3780.6,0.55]
[1717360988944,0.04379269,3781.1,3780.7,2.7355]
[1717360989148,0.04379269,3781.1,3781.0,0.479]
[1717360989333,2.64445,3781.5,3780.8,0.479]
[1717360989531,0.04386487,3781.1,3780.8,0.479]
[1717360989735,2.64445,3781.5,3780.9,0.593055]
[1717360989933,2.64445,3781.5,3780.8,0.479]
[1717360989934,2.4706,3781.4,3780.8,0.479]
[1717360990125,2.4706,3781.4,3780.7,2.2565]
[1717360990126,2.51446487,3781.4,3780.7,2.2565]
[1717360991637,2.51446487,3781.4,3780.6,3.67405]
[1717360992339,2.51446487,3781.4,3780.6,3.19505]
[1717360992539,2.51446487,3781.4,3780.6,3.67405]
[1717360994518,2.4706,3781.4,3780.6,3.67405]
[1717360999853,2.64445,3781.5,3780.7,2.4981]
[1717361000076,0.04400471,3781.4,3780.7,2.4981]
[1717361003375,0.04400471,3781.4,3780.6,3.67405]
[1717361003886,2.64445,3781.5,3780.6,3.67405]
[1717361004187,2.64445,3781.5,3780.8,0.479]
[1717361004387,0.04395508,3781.4,3780.8,0.479]
[1717361010402,0.04395508,3781.4,3780.6,3.67405]
[1717361016891,2.3406,3781.3,3780.6,3.67405]
[1717361017395,0.04399119,3781.2,3780.6,3.67405]
[1717361027406,0.04399119,3781.2,3780.8,2.6449]
[1717361027700,2.3406,3781.3,3780.8,2.6449]
[1717361027905,0.04399569,3781.1,3780.8,2.6449]
[1717361028066,0.1264952,3781.7,3781.0,3.1238]
[1717361028269,0.1264952,3781.7,3781.5,2.3284]
[1717361028468,0.1264952,3781.7,3781.6,0.479]
[1717361028770,0.1264952,3781.7,3781.6,3.12338]
[1717361028963,0.1264952,3781.7,3781.6,4.218558]
[1717361030586,0.1264952,3781.7,3781.6,3.739558]
[1717361030793,0.1264952,3781.7,3781.6,4.218558]
[1717361033327,0.1264952,3781.7,3781.6,3.739558]
[1717361033534,0.1264952,3781.7,3781.6,4.218558]
[1717361038426,0.1264952,3781.7,3781.6,3.739558]
[1717361038625,0.1264952,3781.7,3781.6,4.218558]
[1717361043243,0.1264952,3781.7,3781.6,3.739558]
[1717361043546,0.1264952,3781.7,3781.6,4.218558]
[1717361048521,0.1264952,3781.7,3781.6,3.739558]
[1717361048711,0.1264952,3781.7,3781.6,4.218558]
[1717361059562,0.1264952,3781.7,3781.6,7.218558]
[1717361062023,0.1264952,3781.7,3781.6,9.549158]
[1717361067102,0.1264952,3781.7,3781.6,12.193538]
[1717361071704,0.1264952,3781.7,3781.6,11.714538]
[1717361071902,0.1264952,3781.7,3781.6,9.549158]
[1717361072121,0.1264952,3781.7,3781.6,7.218558]
[1717361073535,0.1264952,3781.7,3781.6,9.528858]
[1717361087336,0.1264952,3781.7,3781.6,9.79326771]
[1717361097847,0.1264952,3781.7,3781.6,12.43764771]
[1717361098046,0.1264952,3781.7,3781.6,12.72338519]
[1717361098956,0.1264952,3781.7,3781.6,10.07900519]
[1717361099160,0.1264952,3781.7,3781.6,9.79326771]
[1717361099546,0.1264952,3781.7,3781.6,12.43764771]
[1717361099746,0.1264952,3781.7,3781.6,12.72338519]
[1717361103051,0.1264952,3781.7,3781.6,13.2771868]
[1717361104196,2.3565,3782.7,3782.6,2.64368]
[1717361104551,2.39617685,3782.7,3782.6,2.64368]
[1717361111993,2.63579453,3782.7,3782.0,2.64409]
[1717361112309,2.4401,3782.5,3782.0,2.64409]
[1717361112461,2.4401,3782.5,3781.7,2.6443]
[1717361112661,0.03974907,3782.4,3781.7,2.6443]
[1717361112990,2.4401,3782.3,3781.7,2.6443]
[1717361113191,0.03974907,3782.2,3781.7,2.6443]
[1717361113417,2.4401,3782.1,3781.7,2.6443]
[1717361113565,2.4401,3782.1,3781.6,7.27]
[1717361113770,0.03961813,3782.0,3781.6,7.27]
[1717361114010,2.4401,3781.9,3781.6,7.27]
[1717361114365,0.03961813,3781.8,3781.6,7.27]
[1717361115070,0.03961813,3781.8,3781.7,0.55]
[1717361115297,0.03961813,3781.8,3781.7,1.029]
[1717361115665,2.4401,3781.9,3781.7,1.029]
[1717361117625,0.0393427,3781.8,3781.7,1.029]
[1717361118796,0.0393427,3781.8,3781.7,0.55]
[1717361118973,0.0393427,3781.8,3781.7,0.479]
[1717361119168,0.0393427,3781.8,3781.7,1.029]